fUSD/lending_fUSD_20241011
["ID","MTS","AMOUNT","RATE_DAILY","PERIOD"]
[340133189,1728669040767,-500.0,0.0002002,2]
[340133191,1728669040776,-500.0,0.0002002,2]
[340133193,1728669040786,-500.0,0.0002002,2]
[340133195,1728669040795,-500.0,0.0002002,2]
[340133197,1728669040804,-500.0,0.0002002,2]
[340133199,1728669040814,-500.0,0.0002002,2]
[340133201,1728669040823,-500.0,0.0002002,2]
[340133203,1728669040833,-500.0,0.0002002,2]
[340133205,1728669040842,-500.0,0.0002002,2]
[340133207,1728669040851,-500.0,0.0002002,2]
[340133209,1728669040861,-500.0,0.0002002,2]
[340133211,1728669040870,-500.0,0.0002002,2]
[340133213,1728669040879,-500.0,0.0002002,2]
[340133215,1728669040888,-500.0,0.0002002,2]
[340133216,1728669040897,-500.0,0.0002002,2]
[340133218,1728669040906,-500.0,0.0002002,2]
[340133220,1728669040916,-500.0,0.0002002,2]
[340133222,1728669040925,-500.0,0.0002002,2]
[340133224,1728669040935,-500.0,0.0002002,2]
[340133226,1728669040944,-500.0,0.0002002,2]
[340133228,1728669040954,-500.0,0.0002002,2]
[340133230,1728669040966,-500.0,0.0002002,2]
[340133232,1728669040975,-500.0,0.0002002,2]
[340133234,1728669040984,-500.0,0.0002002,2]
[340133235,1728669040994,-500.0,0.0002002,2]
[340133238,1728669041004,-500.0,0.0002002,2]
[340133239,1728669041014,-150.0,0.0002002,2]
[340133241,1728669041023,-500.0,0.0002002,2]
[340133243,1728669041033,-500.0,0.0002002,2]
[340133245,1728669041042,-500.0,0.0002002,2]
[340133247,1728669041051,-500.0,0.0002002,2]
[340133249,1728669041061,-500.0,0.0002002,2]
[340133251,1728669041070,-500.0,0.0002002,2]
[340133253,1728669041079,-150.0,0.0002002,2]
[340133255,1728669041088,-500.0,0.0002002,2]
[340133257,1728669041097,-500.0,0.0002002,2]
[340133259,1728669041106,-500.0,0.0002002,2]
[340133261,1728669041115,-500.0,0.0002002,2]
[340133263,1728669041124,-151.53447743,0.0002002,2]
[340133265,1728669041133,-150.0,0.0002002,2]
[340133267,1728669041143,-150.0,0.0002002,2]
[340133269,1728669041152,-150.0,0.0002002,2]
[340133271,1728669041161,-150.0,0.0002002,2]
[340133273,1728669041171,-150.0,0.0002002,2]
[340133274,1728669041181,-547.6964904,0.00020059,2]
[340133276,1728669041190,-500.0,0.00020073,2]
[340133278,1728669041199,-544.82231316,0.00020073,2]
[340133280,1728669041208,-597.23137212,0.00020073,2]
[340133282,1728669041217,-657.409539,0.000201,2]
[340133283,1728669041226,-150.0,0.00020337,4]
[340133284,1728669041236,-500.66,0.00020341,2]
[340133285,1728669041245,-27091.9956316,0.00020361,4]
[340133286,1728669041255,-474.7607014,0.0002037,2]
[340133287,1728669041264,-54183.9912632,0.00020371,4]
[340133288,1728669041273,-24575.2736194,0.00020371,4]
[340133289,1728669041283,-229.25667006,0.00020371,2]
[340133290,1728669041292,-100000.0,0.00020381,2]
[340133291,1728669041301,-217.0,0.000204,2]
[340133292,1728669041310,-150.0,0.0002047,2]
[340133293,1728669041319,-167.0,0.00020484,2]
[340133294,1728669041328,-150.0,0.00020496,4]
[340133295,1728669041338,-1926.0,0.000205,2]
[340133296,1728669041347,-27091.9956316,0.00020512,4]
[340133297,1728669041356,-24575.2736194,0.00020512,4]
[340133298,1728669041365,-151.65,0.00020521,2]
[340133299,1728669041375,-27091.9956316,0.00020522,4]
[340133300,1728669041384,-24575.2736194,0.00020522,4]
[340133301,1728669041393,-37605.2297,0.00020532,2]
[340133302,1728669041403,-300.0,0.00020593,2]
[340133303,1728669041412,-167.0,0.00020632,2]
[340133304,1728669041421,-150.0,0.00020654,4]
[340133305,1728669041430,-150.0,0.00020665,4]
[340133306,1728669041439,-823.0,0.00020676,2]
[340133307,1728669041448,-176.82720457,0.0002072,2]
[340133308,1728669041457,-150.69,0.00020725,2]
[340133309,1728669041466,-1000.0,0.00020725,2]
[340133310,1728669041476,-3792.48014578,0.0002073,2]
[340133311,1728669041485,-165.85519461,0.0002079,2]
[340133312,1728669041494,-162.76849564,0.00020804,2]
[340133313,1728669041504,-81275.9868949,0.0002081,4]
[340133314,1728669041513,-73725.8208583,0.0002081,4]
[340133315,1728669041522,-108367.982526,0.0002082,4]
[340133316,1728669041532,-122876.368097,0.0002082,4]
[340133317,1728669041542,-298.23634965,0.00020822,4]
[340133318,1728669041552,-151.0,0.0002083,2]
[340133319,1728669041562,-151.0,0.0002083,2]
[340133320,1728669041572,-151.0,0.0002083,2]
[340133321,1728669041582,-298.232782,0.0002083,2]
[340133322,1728669041592,-151.0,0.0002083,2]
[340133323,1728669041601,-170.387911,0.0002083,2]
[340133324,1728669041610,-238391.4498,0.0002083,2]
[340133325,1728669041619,-300.23573021,0.00020873,2]
[340133326,1728669041629,-150.0,0.00020941,2]
[340133327,1728669041638,-152.0,0.00020941,5]
[340133328,1728669041647,-27091.9956316,0.00020962,4]
[340133329,1728669041657,-24575.2736194,0.0002097,4]
[340133330,1728669041666,-150.0,0.00020971,4]
[340133331,1728669041677,-150.0,0.00020971,4]
[340133332,1728669041687,-54183.9912632,0.0002098,4]
[340133333,1728669041696,-49150.5472389,0.0002098,4]
[340133334,1728669041706,-98301.0944777,0.0002099,4]
[340133335,1728669041716,-229.25667006,0.0002099,2]
[340133336,1728669041726,-14825.62948148,0.00021,2]
[340133337,1728669041735,-1132.19789764,0.00021,2]
[340133338,1728669041744,-142507.16768309,0.00021,2]
[340133339,1728669041754,-15311.46495227,0.00021,2]
[340133340,1728669041765,-202.134173,0.00021,30]
[340133341,1728669041774,-1000.0,0.00021,2]
[340133342,1728669041783,-195.43131,0.00021,2]
[340133343,1728669041793,-151.0,0.00021,2]
[340133344,1728669041802,-151.0,0.00021,2]
[340133345,1728669041811,-151.0,0.00021,2]
[340133346,1728669041820,-180.759435,0.00021,2]
[340133347,1728669041830,-180.759435,0.00021,2]
[340133348,1728669041839,-151.0,0.00021,2]
[340133349,1728669041848,-151.0,0.00021,2]
[340133350,1728669041858,-151.0,0.00021,2]
[340133351,1728669041867,-151.0,0.00021,2]
[340133352,1728669041876,-251.428238,0.00021,2]
[340133353,1728669041886,-151.0,0.00021,2]
[340133354,1728669041895,-151.0,0.00021,2]
[340133355,1728669041904,-151.0,0.00021,2]
[340133356,1728669041913,-151.0,0.00021,2]
[340133357,1728669041923,-151.0,0.00021,2]
[340133358,1728669041932,-151.0,0.00021,2]
[340133359,1728669041942,-155.816356,0.00021,2]
[340133360,1728669041952,-155.816356,0.00021,2]
[340133361,1728669041962,-151.0,0.00021,2]
[340133362,1728669041973,-298.19092,0.00021,2]
[340133363,1728669041982,-295.480051,0.00021,2]
[340133364,1728669041991,-295.480051,0.00021,2]
[340133365,1728669042000,-151.0,0.00021,2]
[340133366,1728669042010,-151.630044,0.00021,2]
[340133367,1728669042019,-151.0,0.00021,2]
[340133368,1728669042029,-151.0,0.00021,2]
[340133369,1728669042039,-153.507544,0.00021,2]
[340133370,1728669042050,-151.199339,0.00021,2]
[340133371,1728669042060,-499.2994,0.00021,2]
[340133372,1728669042069,-499.2994,0.00021,2]
[340133373,1728669042079,-458.555401,0.00021,2]
[340133374,1728669042088,-458.555401,0.00021,2]
[340133375,1728669042099,-151.0,0.00021,2]
[340133376,1728669042109,-151.0,0.00021,2]
[340133377,1728669042120,-151.0,0.00021,2]
[340133378,1728669042130,-151.0,0.00021,2]
[340133379,1728669042139,-180.892139,0.00021,2]
[340133380,1728669042149,-151.0,0.00021,2]
[340133381,1728669042160,-180.892139,0.00021,2]
[340133382,1728669042169,-394.871888,0.00021,2]
[340133383,1728669042179,-394.871888,0.00021,2]
[340133384,1728669042188,-236.386338,0.00021,2]
[340133385,1728669042197,-236.386338,0.00021,2]
[340133386,1728669042207,-2044.103329,0.00021,2]
[340133387,1728669042216,-156.360367,0.00021,2]
[340133388,1728669042226,-156.360367,0.00021,2]
[340133389,1728669042235,-2044.103329,0.00021,2]
[340133390,1728669042245,-151.0,0.00021,2]
[340133391,1728669042254,-256.774542,0.00021,2]
[340133392,1728669042263,-151.0,0.00021,2]
[340133393,1728669042273,-151.0,0.00021,2]
[340133394,1728669042282,-151.0,0.00021,2]
[340133395,1728669042291,-151.0,0.00021,2]
[340133396,1728669042300,-500.0,0.00021116,2]
[340133397,1728669042309,-500.0,0.00021116,2]
[340133398,1728669042319,-174.68,0.00021133,2]
[340133399,1728669042328,-175.44,0.00021233,2]
[340133400,1728669042337,-167.0,0.00021252,2]
[340133401,1728669042347,-150.0,0.00021289,4]
[340133402,1728669042356,-200.0,0.000213,7]
[340133403,1728669042365,-150.0,0.00021309,4]
[340133404,1728669042374,-150.0,0.00021412,2]
[340133405,1728669042383,-150.0,0.00021447,4]
[340133406,1728669042392,-151.65,0.00021454,2]
[340133407,1728669042402,-547.6964904,0.00021485,2]
[340133408,1728669042411,-193.0,0.000215,2]
[340133409,1728669042420,-1000.0,0.000215,2]
[340133410,1728669042430,-4454.2117448,0.0002152,2]
[340133411,1728669042439,-500.0,0.0002152,30]
[340133412,1728669042448,-500.0,0.0002152,30]
[340133413,1728669042458,-500.0,0.0002152,30]
[340133414,1728669042467,-500.0,0.0002152,30]
[340133415,1728669042476,-500.0,0.0002152,30]
[340133416,1728669042486,-500.0,0.0002152,30]
[340133417,1728669042495,-500.0,0.0002152,30]
[340133418,1728669042504,-500.0,0.0002152,30]
[340133419,1728669042513,-500.0,0.0002152,30]
[340133420,1728669042522,-513.2696706,0.0002152,30]
[340133421,1728669042531,-150.0,0.00021606,4]
[340133422,1728669042540,-167.0,0.00021872,2]
[340133423,1728669042549,-150.0,0.00021884,2]
[340133424,1728669042559,-385.33635476,0.000219,2]
[340133425,1728669042568,-1409.13,0.00021918,2]
[340133426,1728669042578,-150.0,0.00021923,4]
[340133427,1728669042588,-150.0,0.00021923,4]
[340133428,1728669042596,-150.0,0.00021954,4]
[340133429,1728669042605,-24575.2736194,0.0002196,4]
[340133430,1728669042615,-333.90001541,0.00021973,2]
[340133431,1728669042624,-151.0,0.0002198,7]
[340133432,1728669042633,-151.0,0.0002198,7]
[340133433,1728669042642,-180.759435,0.0002198,7]
[340133434,1728669042651,-180.759435,0.0002198,7]
[340133435,1728669042660,-151.0,0.0002198,7]
[340133436,1728669042670,-151.0,0.0002198,7]
[340133437,1728669042679,-151.0,0.0002198,7]
[340133438,1728669042688,-151.0,0.0002198,7]
[340133439,1728669042697,-151.0,0.0002198,7]
[340133440,1728669042706,-151.0,0.0002198,7]
[340133441,1728669042715,-288.35868,0.0002198,7]
[340133442,1728669042724,-151.0,0.0002198,7]
[340133443,1728669042733,-151.0,0.0002198,7]
[340133444,1728669042743,-155.816356,0.0002198,7]
[340133445,1728669042751,-155.816356,0.0002198,7]
[340133446,1728669042761,-2092.3331671,0.00021985,2]
[340133447,1728669042770,-162.5043638,0.00021985,2]
[340133448,1728669042779,-151.0,0.0002199,7]
[340133449,1728669042789,-151.0,0.0002199,7]
[340133450,1728669042798,-151.0,0.0002199,7]
[340133451,1728669042807,-151.0,0.0002199,7]
[340133453,1728669042816,-151.0,0.0002199,7]
[340133454,1728669042825,-180.759435,0.0002199,7]
[340133456,1728669042835,-151.0,0.0002199,7]
[340133458,1728669042844,-180.759435,0.0002199,7]
[340133459,1728669042853,-151.0,0.0002199,7]
[340133460,1728669042862,-151.0,0.0002199,7]
[340133461,1728669042872,-151.0,0.0002199,7]
[340133462,1728669042882,-151.0,0.0002199,7]
[340133463,1728669042891,-151.0,0.0002199,7]
[340133464,1728669042900,-151.0,0.0002199,7]
[340133465,1728669042909,-151.0,0.0002199,7]
[340133467,1728669042918,-98301.0944777,0.0002199,4]
[340133469,1728669042927,-360.82,0.00021999,2]
[340133471,1728669042937,-360.82,0.00021999,2]
[340133472,1728669042947,-360.82,0.00021999,2]
[340133474,1728669042957,-360.82,0.00021999,2]
[340133476,1728669042969,-360.82,0.00021999,2]
[340133479,1728669042978,-360.82,0.00021999,2]
[340133481,1728669042988,-360.82,0.00021999,2]
[340133483,1728669042997,-360.82,0.00021999,2]
[340133484,1728669043006,-360.82,0.00021999,2]
[340133486,1728669043015,-360.82,0.00021999,2]
[340133487,1728669043024,-95534.93645803,0.00022,7]
[340133489,1728669043033,-755.05973315,0.00022,2]
[340133490,1728669043042,-243.00095037,0.00022,2]
[340133492,1728669043052,-747.38857135,0.00022,7]
[340133493,1728669043061,-150.0,0.00022,120]
[340133495,1728669043071,-407532.2706146,0.00022,2]
[340133496,1728669043080,-1000.0,0.00022,2]
[340133497,1728669043088,-850.0,0.00022,2]
[340133498,1728669043097,-151.0,0.00022,7]
[340133499,1728669043106,-161.837654,0.00022,7]
[340133500,1728669043115,-151.0,0.00022,7]
[340133501,1728669043124,-151.0,0.00022,7]
[340133502,1728669043133,-267.0,0.00022,7]
[340133503,1728669043142,-180.759435,0.00022,7]
[340133504,1728669043151,-151.0,0.00022,7]
[340133505,1728669043161,-180.759435,0.00022,7]
[340133506,1728669043170,-151.0,0.00022,7]
[340133507,1728669043179,-151.0,0.00022,7]
[340133508,1728669043189,-151.0,0.00022,7]
[340133509,1728669043199,-208.322472,0.00022,7]
[340133510,1728669043208,-151.0,0.00022,7]
[340133511,1728669043217,-271.835562,0.00022,7]
[340133512,1728669043226,-151.0,0.00022,7]
[340133513,1728669043236,-155.816356,0.00022,7]
[340133514,1728669043245,-155.816356,0.00022,7]
[340133515,1728669043255,-295.480051,0.00022,7]
[340133516,1728669043264,-295.480051,0.00022,7]
[340133517,1728669043274,-151.0,0.00022,7]
[340133518,1728669043283,-499.2994,0.00022,7]
[340133519,1728669043292,-499.2994,0.00022,7]
[340133520,1728669043301,-458.555401,0.00022,7]
[340133521,1728669043310,-458.555401,0.00022,7]
[340133522,1728669043319,-151.0,0.00022,7]
[340133523,1728669043328,-277.430118,0.00022,7]
[340133524,1728669043337,-151.0,0.00022,7]
[340133525,1728669043346,-180.892139,0.00022,7]
[340133526,1728669043356,-151.0,0.00022,7]
[340133527,1728669043365,-180.892139,0.00022,7]
[340133528,1728669043374,-394.871888,0.00022,7]
[340133529,1728669043383,-394.871888,0.00022,7]
[340133530,1728669043392,-236.386338,0.00022,7]
[340133531,1728669043401,-236.386338,0.00022,7]
[340133532,1728669043410,-156.360367,0.00022,7]
[340133533,1728669043419,-2044.103329,0.00022,7]
[340133534,1728669043428,-156.360367,0.00022,7]
[340133535,1728669043437,-2044.103329,0.00022,7]
[340133536,1728669043446,-151.0,0.00022,7]
[340133537,1728669043455,-175.975237,0.00022,7]
[340133538,1728669043464,-159.444108,0.00022,7]
[340133539,1728669043473,-174.203666,0.00022,7]
[340133540,1728669043483,-227.91266888,0.0002211,2]
[340133541,1728669043492,-167.0,0.00022174,2]
[340133542,1728669043639,-150.0,0.0002224,4]
[340133543,1728669043649,-150.0,0.00022355,2]
[340133544,1728669043659,-151.65,0.00022387,2]
[340133545,1728669043668,-186.53,0.00022398,2]
[340133546,1728669043677,-150.0,0.00022399,4]
[340133547,1728669043686,-209.85558756,0.000224,2]
[340133548,1728669043697,-10000.0,0.00022463,7]
[340133549,1728669043706,-33616.84918725,0.000225,2]
[340133550,1728669043714,-3000.0,0.000225,2]
[340133551,1728669043724,-150.0,0.00022517,4]
[340133552,1728669043733,-150.0,0.00022557,4]
[340133553,1728669043742,-150.0,0.00022598,4]
[340133554,1728669043752,-500.66,0.00022605,2]
[340133555,1728669043761,-1152.0,0.0002261,2]
[340133556,1728669043770,-268.0,0.0002268,10]
[340133557,1728669043780,-152.0,0.00022717,6]
[340133558,1728669043790,-154.32378772,0.00022717,5]
[340133559,1728669043799,-1000.0,0.00022797,2]
[340133560,1728669043808,-40718.0,0.00022826,2]
[340133561,1728669043817,-150.0,0.00022826,2]
[340133562,1728669043827,-150.0,0.00022874,4]
[340133563,1728669043836,-150.0,0.00022874,4]
[340133564,1728669043845,-651.65426793,0.00022999,2]
[340133565,1728669043854,-280.24019262,0.00023,2]
[340133566,1728669043864,-150.0,0.00023,120]
[340133567,1728669043873,-1000.0,0.00023,2]
[340133568,1728669043883,-200.0,0.00023,2]
[340133569,1728669043893,-306.2,0.00023,2]
[340133570,1728669043902,-1002.5,0.00023,2]
[340133571,1728669043911,-265.10492896,0.0002301,2]
[340133572,1728669043920,-150.0,0.00023191,4]
[340133573,1728669043929,-49426.5859351,0.000232,2]
[340133574,1728669043939,-562.79387952,0.0002322,2]
[340133575,1728669043948,-150.0,0.00023243,4]
[340133576,1728669043958,-150.0,0.00023297,2]
[340133577,1728669043969,-500.0,0.00023308,2]
[340133578,1728669043978,-500.0,0.00023308,2]
[340133579,1728669043987,-150.0,0.0002335,4]
[340133580,1728669043997,-150.0,0.00023509,4]
[340133581,1728669044006,-534.7,0.00023616,2]
[340133582,1728669044015,-150.0,0.00023769,2]
[340133583,1728669044024,-150.0,0.00023826,4]
[340133584,1728669044034,-150.0,0.00023826,4]
[340133585,1728669044043,-167.0,0.00023865,2]
[340133586,1728669044052,-150.0,0.00023887,4]
[340133587,1728669044061,-1613.68454525,0.00023903,2]
[340133588,1728669044071,-151.0,0.00023912,7]
[340133589,1728669044079,-151.0,0.00023912,7]
[340133590,1728669044088,-231764.34924133,0.00023922,2]
[340133591,1728669044097,-251.101046,0.00023922,7]
[340133592,1728669044107,-180.759435,0.00023922,7]
[340133593,1728669044116,-151.0,0.00023922,7]
[340133594,1728669044125,-180.759435,0.00023922,7]
[340133595,1728669044134,-151.0,0.00023922,7]
[340133596,1728669044143,-151.0,0.00023922,7]
[340133597,1728669044152,-151.0,0.00023922,7]
[340133598,1728669044162,-155.816356,0.00023922,7]
[340133599,1728669044171,-155.816356,0.00023922,7]
[340133600,1728669044179,-295.480051,0.00023922,7]
[340133602,1728669044188,-295.480051,0.00023922,7]
[340133603,1728669044198,-499.2994,0.00023922,7]
[340133604,1728669044207,-499.2994,0.00023922,7]
[340133605,1728669044216,-458.555401,0.00023922,7]
[340133606,1728669044225,-458.555401,0.00023922,7]
[340133607,1728669044234,-151.0,0.00023922,7]
[340133608,1728669044244,-151.0,0.00023922,7]
[340133609,1728669044253,-180.892139,0.00023922,7]
[340133610,1728669044262,-151.0,0.00023922,7]
[340133611,1728669044272,-180.892139,0.00023922,7]
[340133612,1728669044281,-394.871888,0.00023922,7]
[340133613,1728669044290,-394.871888,0.00023922,7]
[340133614,1728669044299,-236.386338,0.00023922,7]
[340133615,1728669044308,-236.386338,0.00023922,7]
[340133616,1728669044317,-156.360367,0.00023922,7]
[340133617,1728669044326,-2044.103329,0.00023922,7]
[340133618,1728669044335,-156.360367,0.00023922,7]
[340133619,1728669044345,-2044.103329,0.00023922,7]
[340133620,1728669044354,-151.0,0.00023922,7]
[340133621,1728669044364,-967.44531371,0.00024,2]
[340133622,1728669044373,-76385.06971516,0.00024,2]
[340133623,1728669044382,-301.20431719,0.00024,7]
[340133624,1728669044391,-150.0,0.00024,120]
[340133625,1728669044401,-1000.0,0.00024,2]
[340133626,1728669044410,-900.0,0.00024,2]
[340133627,1728669044419,-161.11,0.00024,14]
[340133628,1728669044428,-151.0,0.00024,7]
[340133629,1728669044437,-297.0427076,0.00024,7]
[340133630,1728669044447,-151.0,0.00024,7]
[340133631,1728669044456,-3065.45843803,0.0002408,2]
[340133632,1728669044466,-1002.5,0.00024085,2]
[340133633,1728669044475,-150.0,0.0002413,2]
[340133634,1728669044484,-150.0,0.0002413,2]
[340133635,1728669044493,-150.0,0.00024143,4]
[340133636,1728669044502,-399.44943674,0.0002421,2]
[340133637,1728669044512,-3502.10652706,0.0002421,2]
[340133638,1728669044521,-306.2,0.00024215,2]
[340133639,1728669044530,-150.0,0.0002424,2]
[340133640,1728669044539,-1224.50192487,0.0002425,2]
[340133641,1728669044548,-150.0,0.00024301,4]
[340133642,1728669044557,-335.49578111,0.0002442,2]
[340133643,1728669044567,-150.0,0.0002446,4]
[340133644,1728669044577,-150.0,0.00024532,4]
[340133645,1728669044585,-375.0,0.00024657,2]
[340133646,1728669044595,-233.19673746,0.000247,2]
[340133647,1728669044604,-150.0,0.00024711,2]
[340133648,1728669044612,-214.0,0.00024725,2]
[340133649,1728669044622,-150.0,0.00024777,4]
[340133650,1728669044632,-150.0,0.00024777,4]
[340133651,1728669044642,-405.24,0.00024853,2]
[340133652,1728669044651,-500.66,0.00024869,2]
[340133653,1728669044660,-150.69,0.0002487,120]
[340133654,1728669044669,-1000.0,0.0002487,2]
[340133655,1728669044679,-15190.05201112,0.000249,2]
[340133656,1728669044688,-15429.12631392,0.000249,2]
[340133657,1728669044698,-158.39,0.00024962,2]
[340133658,1728669044708,-229.25667006,0.0002499,2]
[340133659,1728669044717,-100000.0,0.00025,7]
[340133660,1728669044727,-38957.81864424,0.00025,2]
[340133661,1728669044737,-2884.3837113,0.00025,2]
[340133662,1728669044747,-327.69405,0.00025,2]
[340133663,1728669044756,-7851.01473035,0.00025,5]
[340133664,1728669044766,-1000.0,0.00025,2]
[340133665,1728669044776,-160.0,0.00025,2]
[340133666,1728669044786,-161.0,0.00025,10]
[340133667,1728669044795,-5073.60464208,0.00025,2]
[340133668,1728669044804,-167480.0,0.00025,30]
[340133669,1728669044814,-150.0,0.00025,120]
[340133670,1728669044823,-1000.0,0.00025,2]
[340133671,1728669044834,-151.0,0.00025,7]
[340133672,1728669044845,-180.759435,0.00025,7]
[340133673,1728669044855,-180.759435,0.00025,7]
[340133674,1728669044865,-151.0,0.00025,7]
[340133675,1728669044875,-151.0,0.00025,7]
[340133676,1728669044885,-151.0,0.00025,7]
[340133677,1728669044894,-155.816356,0.00025,7]
[340133678,1728669044903,-155.816356,0.00025,7]
[340133679,1728669044912,-295.480051,0.00025,7]
[340133680,1728669044921,-295.480051,0.00025,7]
[340133681,1728669044931,-499.2994,0.00025,7]
[340133682,1728669044940,-499.2994,0.00025,7]
[340133683,1728669044949,-458.555401,0.00025,7]
[340133684,1728669044958,-458.555401,0.00025,7]
[340133685,1728669044970,-151.0,0.00025,7]
[340133686,1728669044979,-151.0,0.00025,7]
[340133687,1728669044988,-180.892139,0.00025,7]
[340133688,1728669044999,-151.0,0.00025,7]
[340133689,1728669045010,-180.892139,0.00025,7]
[340133690,1728669045019,-394.871888,0.00025,7]
[340133691,1728669045028,-394.871888,0.00025,7]
[340133692,1728669045038,-236.386338,0.00025,7]
[340133693,1728669045047,-236.386338,0.00025,7]
[340133694,1728669045057,-156.360367,0.00025,7]
[340133695,1728669045066,-2044.103329,0.00025,7]
[340133696,1728669045076,-156.360367,0.00025,7]
[340133697,1728669045085,-2044.103329,0.00025,7]
[340133698,1728669045094,-151.0,0.00025,7]
[340133699,1728669045103,-150.0,0.00025015,4]
[340133700,1728669045112,-547.6964904,0.00025083,2]
[340133701,1728669045121,-150.0,0.00025094,4]
[340133702,1728669045130,-3206.30735538,0.000251,2]
[340133703,1728669045139,-161.11,0.000251,14]
[340133704,1728669045148,-1002.5,0.0002517,2]
[340133705,1728669045157,-150.0,0.00025176,4]
[340133706,1728669045166,-150.0,0.00025182,2]
[340133707,1728669045176,-3000.0,0.000252,2]
[340133708,1728669045185,-328.34,0.00025205,2]
[340133709,1728669045194,-150.0,0.00025253,4]
[340133710,1728669045203,-205.0,0.000253,10]
[340133711,1728669045212,-150.0,0.00025411,4]
[340133712,1728669045221,-306.2,0.0002543,2]
[340133713,1728669045230,-500.0,0.000255,7]
[340133714,1728669045239,-500.0,0.000255,7]
[340133715,1728669045248,-186.53,0.00025597,120]
[340133716,1728669045257,-150.0,0.00025654,2]
[340133717,1728669045266,-150.0,0.00025729,4]
[340133718,1728669045276,-150.0,0.00025729,4]
[340133719,1728669045285,-150.0,0.00025821,4]
[340133720,1728669045294,-358.56,0.0002589,2]
[340133721,1728669045303,-429.44,0.0002589,2]
[340133722,1728669045312,-1613.68454525,0.00025894,2]
[340133723,1728669045321,-4286.65529508,0.00026,2]
[340133724,1728669045330,-4433.65,0.00026,2]
[340133725,1728669045340,-150.0,0.00026,120]
[340133726,1728669045349,-1000.0,0.00026,2]
[340133727,1728669045358,-950.0,0.00026,2]
[340133728,1728669045367,-175.44,0.00026027,2]
[340133729,1728669045376,-516.17921887,0.0002604,2]
[340133730,1728669045385,-150.0,0.00026046,4]
[340133731,1728669045394,-651.65426793,0.00026083,2]
[340133732,1728669045403,-150.0,0.00026125,2]
[340133733,1728669045412,-1078.61,0.00026178,2]
[340133734,1728669045421,-161.11,0.000262,14]
[340133735,1728669045430,-150.0,0.00026204,4]
[340133736,1728669045439,-1002.5,0.00026255,2]
[340133737,1728669045448,-150.0,0.00026363,4]
[340133738,1728669045458,-26018.17379824,0.000264,2]
[340133739,1728669045467,-150.0,0.00026465,4]
[340133740,1728669045475,-802.02948672,0.0002652,30]
[340133741,1728669045484,-150.0,0.00026596,2]
[340133742,1728669045493,-306.2,0.00026645,2]
[340133743,1728669045502,-150.0,0.0002668,4]
[340133744,1728669045512,-150.0,0.0002668,4]
[340133745,1728669045521,-150.0,0.0002668,4]
[340133746,1728669045530,-150.0,0.00026997,4]
[340133747,1728669045539,-11108.6745156,0.00027,2]
[340133748,1728669045547,-408.44509366,0.00027,2]
[340133749,1728669045557,-981.14976899,0.00027,2]
[340133750,1728669045566,-2078.13476976,0.00027,120]